[Event "Bijnor Open 2023"]
[Site "Bijnor"]
[Date "2023.11.30"]
[Round "2.1"]
[White "Utkrisht Singh"]
[Black "Kulkarni, Vikramaditya"]
[Result "0-1"]
[ECO "A41"]
[WhiteElo "1152"]
[BlackElo "2209"]
[Annotator "RC"]
[PlyCount "134"]
[EventDate "2023.11.29"]
[EventCountry "IND"]
[SourceTitle "playchess.com"]
[Source "ChessBase"]
[SourceQuality "1"]
[TimeControl "5400+30"]

1. d4 {[%emt 0:00:08]} g6 {[%emt 0:00:35]} 2. c4 {[%emt 0:00:52]} d6 {[%emt 0:00:51]} 3. Nc3 {[%emt 0:01:51]} e5 {[%emt 0:01:51]} 4. Nf3 {[%emt 0:03:19]} Nc6 {[%emt 0:01:54]} 5. dxe5 {[%emt 0:03:43]} Nxe5 {[%emt 0:08:45]} 6. Nxe5 {[%emt 0:03:31]} dxe5 {[%emt 0:00:02]} 7. Qxd8+ {[%emt 0:01:42]} Kxd8 {[%emt 0:00:02]} 8. e4 {[%emt 0:02:21]} h5 {[%emt 0:04:45]} 9. Be3 {[%emt 0:03:10]} Bh6 {[%emt 0:00:23]} 10. O-O-O+ {[%emt 0:01:40]} Bd7 {[%emt 0:00:10]} 11. Bxh6 {[%emt 0:03:05]} Rxh6 {[%emt 0:00:19]} 12. g3 {[%emt 0:01:55]} Ke8 {[%emt 0:02:26]} 13. Nd5 {[%emt 0:05:34]} Rc8 {[%emt 0:00:56]} 14. Bg2 {[%emt 0:02:21]} h4 {[%emt 0:03:57]} 15. b3 {[%emt 0:05:26]} Bg4 {[%emt 0:10:48]} 16. f3 {[%emt 0:04:08]} h3 {[%emt 0:00:43]} 17. fxg4 {[%emt 0:00:51]} hxg2 {[%emt 0:00:03]} 18. Rhg1 {[%emt 0:00:36]} Rxh2 {[%emt 0:00:05]} 19. Rd2 {[%emt 0:00:45]} c6 {[%emt 0:02:44]} 20. Nc3 {[%emt 0:01:36]} Nf6 {[%emt 0:00:56]} 21. g5 {[%emt 0:01:28]} Nh7 {[%emt 0:00:22]} 22. Rdxg2 {[%emt 0:01:38]} Rxg2 {[%emt 0:00:02]} 23. Rxg2 {[%emt 0:00:11]} Rd8 {[%emt 0:00:22]} 24. Rh2 {[%emt 0:01:56]} Nxg5 {[%emt 0:00:09]} 25. Rh8+ {[%emt 0:01:28]} Ke7 {[%emt 0:00:01]} 26. Rxd8 {[%emt 0:00:39]} Kxd8 {[%emt 0:00:01]} 27. Kd2 {[%emt 0:02:08]} Ke7 {[%emt 0:00:44]} 28. Ke3 {[%emt 0:03:46]} Ne6 {[%emt 0:01:03]} 29. g4 {[%emt 0:07:01]} Kf6 {[%emt 0:00:40]} 30. Kf3 {[%emt 0:05:35]} Kg5 {[%emt 0:00:13]} 31. Kg3 {[%emt 0:02:09]} Nc5 {[%emt 0:02:35]} 32. Kf3 {[%emt 0:05:07]} Kh4 {[%emt 0:00:11]} 33. Nd1 {[%emt 0:05:27]} Ne6 {[%emt 0:01:01]} 34. Nf2 {[%emt 0:02:00]} f6 {[%emt 0:00:21]} 35. b4 {[%emt 0:06:40]} Nd4+ {[%emt 0:00:32]} 36. Kg2 {[%emt 0:00:39]} Nc2 {[%emt 0:00:09]} 37. b5 {[%emt 0:01:38]} cxb5 {[%emt 0:00:19]} 38. cxb5 {[%emt 0:00:09]} Na3 {[%emt 0:00:08]} 39. b6 {[%emt 0:00:39]} axb6 {[%emt 0:00:02]} 40. Kf3 {[%emt 0:01:04]} Nc2 {[%emt 0:00:03]} 41. a4 {[%emt 0:03:17]} Nd4+ {[%emt 0:00:14]} 42. Kg2 {[%emt 0:01:15]} Ne2 {[%emt 0:00:23]} 43. Kf3 {[%emt 0:02:01]} Nd4+ {[%emt 0:00:38]} 44. Kg2 {[%emt 0:00:12]} g5 {[%emt 0:00:20]} 45. Kh2 {[%emt 0:01:13]} Ne2 {[%emt 0:06:09]} 46. Kg2 {[%emt 0:00:42]} Nc3 {[%emt 0:00:10]} 47. Kf3 {[%emt 0:00:41]} Nxa4 {[%emt 0:00:03]} 48. Nd3 {[%emt 0:00:35]} Nc5 {[%emt 0:00:32]} 49. Nb4 {[%emt 0:00:41]} b5 {[%emt 0:00:13]} 50. Nd5 {[%emt 0:00:18]} Nd7 {[%emt 0:00:01]} 51. Nb4 {[%emt 0:00:49]} Kh3 {[%emt 0:00:05]} 52. Nd5 {[%emt 0:00:22]} Kh2 {[%emt 0:03:07]} 53. Kf2 {[%emt 0:00:43]} Kh1 {[%emt 0:00:26]} 54. Kf1 {[%emt 0:00:32]} b6 {[%emt 0:02:48]} 55. Kf2 {[%emt 0:01:39]} Kh2 {[%emt 0:00:02]} 56. Nb4 {[%emt 0:00:33]} Nc5 {[%emt 0:00:07]} 57. Kf3 {[%emt 0:00:34]} Kg1 {[%emt 0:00:03]} 58. Nd5 {[%emt 0:00:23]} Nd7 {[%emt 0:00:14]} 59. Nb4 {[%emt 0:00:52]} Kf1 {[%emt 0:00:05]} 60. Ke3 {[%emt 0:00:31]} Kg2 {[%emt 0:00:03]} 61. Nd5 {[%emt 0:00:58]} Kg3 {[%emt 0:00:04]} 62. Nc7 {[%emt 0:00:24]} b4 {[%emt 0:00:09]} 63. Kd3 {[%emt 0:00:25]} Nc5+ {[%emt 0:00:13]} 64. Kc4 {[%emt 0:00:09]} b3 {[%emt 0:00:04]} 65. Nd5 {[%emt 0:00:16]} b2 {[%emt 0:00:07]} 66. Nc3 {[%emt 0:00:06]} Kxg4 {[%emt 0:00:27]} 67. Kb4 {[%emt 0:00:23]} Nxe4 {[%emt 0:00:13]} 0-1

[Event "Bijnor Open 2023"]
[Site "Bijnor"]
[Date "2023.11.30"]
[Round "2.2"]
[White "Gauransh Jaiswal"]
[Black "Ramnathan, Balasubramaniam"]
[Result "0-1"]
[ECO "A50"]
[WhiteElo "1145"]
[BlackElo "1920"]
[Annotator "COMBH"]
[PlyCount "118"]
[EventDate "2023.11.29"]
[EventCountry "IND"]
[SourceTitle "playchess.com"]
[Source "ChessBase"]
[SourceQuality "1"]
[TimeControl "5400+30"]

1. d4 {[%emt 0:00:03]} Nf6 {[%emt 0:00:14]} 2. c4 {[%emt 0:00:08]} b6 {[%emt 0:00:26]} 3. Nf3 {[%emt 0:00:36]} Bb7 {[%emt 0:00:06]} 4. g3 {[%emt 0:00:44]} e6 {[%emt 0:01:25]} 5. Bg2 {[%emt 0:00:19]} g6 {[%emt 0:00:40]} 6. O-O {[%emt 0:00:31]} Bg7 {[%emt 0:00:05]} 7. Nc3 {[%emt 0:00:50]} O-O {[%emt 0:00:07]} 8. e3 {[%emt 0:00:58]} d6 {[%emt 0:00:58]} 9. Bd2 {[%emt 0:00:45]} Nbd7 {[%emt 0:00:10]} 10. Rc1 {[%emt 0:01:30]} c5 {[%emt 0:01:13]} 11. Qe2 {[%emt 0:03:19]} a6 {[%emt 0:00:20]} 12. Rfd1 {[%emt 0:01:46]} Qc7 {[%emt 0:00:30]} 13. Nh4 {[%emt 0:03:22]} Rac8 {[%emt 0:01:13]} 14. Bxb7 {[%emt 0:01:56]} Qxb7 {[%emt 0:00:06]} 15. b3 {[%emt 0:01:34]} Rfd8 {[%emt 0:01:26]} 16. Qf3 {[%emt 0:01:07]} Qb8 {[%emt 0:01:02]} 17. Qg2 {[%emt 0:04:07]} b5 {[%emt 0:00:49]} 18. d5 {[%emt 0:02:18]} exd5 {[%emt 0:06:44]} 19. Nxd5 {[%emt 0:01:24]} Nxd5 {[%emt 0:00:07]} 20. cxd5 {[%emt 0:00:17]} Re8 {[%emt 0:00:56]} 21. Bc3 {[%emt 0:02:53]} Nf6 {[%emt 0:02:13]} 22. Qf3 {[%emt 0:02:27]} Ne4 {[%emt 0:02:05]} 23. Bxg7 {[%emt 0:02:37]} Kxg7 {[%emt 0:00:07]} 24. Qe2 {[%emt 0:02:02]} Qb7 {[%emt 0:03:42]} 25. Nf3 {[%emt 0:03:21]} b4 {[%emt 0:00:51]} 26. Qc4 {[%emt 0:18:11]} Qe7 {[%emt 0:01:06]} 27. Nd2 {[%emt 0:07:40]} Nc3 {[%emt 0:00:19]} 28. Re1 {[%emt 0:01:00]} Qb7 {[%emt 0:03:13]} 29. e4 {[%emt 0:03:06]} Re7 {[%emt 0:03:16]} 30. Nb1 {[%emt 0:01:56]} Nb5 {[%emt 0:00:35]} 31. Qf1 {[%emt 0:08:56]} Rce8 {[%emt 0:00:44]} 32. f3 {[%emt 0:00:56]} Qd7 {[%emt 0:00:53]} 33. Nd2 {[%emt 0:00:39]} a5 {[%emt 0:02:15]} 34. Nc4 {[%emt 0:01:09]} Qc7 {[%emt 0:02:14]} 35. Ne3 {[%emt 0:06:25]} Nd4 {[%emt 0:00:52]} 36. Nc2 {[%emt 0:00:38]} Nxc2 {[%emt 0:00:50]} 37. Rxc2 {[%emt 0:00:11]} f5 {[%emt 0:00:30]} 38. Qd3 {[%emt 0:02:19]} fxe4 {[%emt 0:00:20]} 39. fxe4 {[%emt 0:00:37]} Re5 {[%emt 0:02:43]} 40. Rf2 {[%emt 0:01:33]} Qe7 {[%emt 0:03:35]} 41. Qf3 {[%emt 0:00:35]} Rf5 {[%emt 0:04:19]} 42. Qe2 {[%emt 0:02:37]} Rxf2 {[%emt 0:00:43]} 43. Kxf2 {[%emt 0:00:29]} Qe5 {[%emt 0:02:18]} 44. Kg2 {[%emt 0:00:25]} Qd4 {[%emt 0:01:57]} 45. Kh1 {[%emt 0:01:34]} Re7 {[%emt 0:01:34]} 46. Kg2 {[%emt 0:00:27]} a4 {[%emt 0:01:27]} 47. Kh1 {[%emt 0:02:43]} a3 {[%emt 0:01:04]} 48. Kg2 {[%emt 0:00:36]} Qb2 {[%emt 0:05:47]} 49. Kh1 {[%emt 0:00:47]} Qxe2 {[%emt 0:00:13]} 50. Rxe2 {[%emt 0:00:08]} Kf6 {[%emt 0:00:09]} 51. Kg2 {[%emt 0:02:25]} Ke5 {[%emt 0:00:06]} 52. Re1 {[%emt 0:05:04]} Rf7 {[%emt 0:00:34]} 53. Re2 {[%emt 0:01:00]} g5 {[%emt 0:00:16]} 54. h3 {[%emt 0:01:22]} h5 {[%emt 0:00:13]} 55. Re1 {[%emt 0:00:37]} h4 {[%emt 0:01:36]} 56. gxh4 {[%emt 0:00:22]} gxh4 {[%emt 0:00:06]} 57. Kg1 {[%emt 0:00:56]} Rf4 {[%emt 0:00:31]} 58. Kg2 {[%emt 0:00:20]} Rxe4 {[%emt 0:00:19]} 59. Ra1 {[%emt 0:00:14]} Rd4 {[%emt 0:00:31]} 0-1

[Event "Bijnor Open 2023"]
[Site "Bijnor"]
[Date "2023.11.30"]
[Round "2.3"]
[White "Sharma, Harish"]
[Black "Aditya Saxena"]
[Result "1-0"]
[ECO "C50"]
[WhiteElo "1904"]
[BlackElo "1150"]
[Annotator "NA RC"]
[PlyCount "107"]
[EventDate "2023.11.29"]
[EventCountry "IND"]
[SourceTitle "playchess.com"]
[Source "ChessBase"]
[SourceQuality "1"]
[TimeControl "5400+30"]

1. e4 {[%emt 0:00:05]} e5 {[%emt 0:00:35]} 2. Nf3 {[%emt 0:00:07]} Nf6 {[%emt 0:00:28]} 3. Nc3 {[%emt 0:00:43]} Nc6 {[%emt 0:01:47]} 4. Bc4 {[%emt 0:00:12]} Bc5 {[%emt 0:01:50]} 5. d3 {[%emt 0:00:06]} O-O {[%emt 0:00:47]} 6. a3 {[%emt 0:01:42]} d6 {[%emt 0:01:49]} 7. Bg5 {[%emt 0:00:15]} Be6 {[%emt 0:01:35]} 8. Nd5 {[%emt 0:00:10]} Bxd5 {[%emt 0:01:43]} 9. Bxd5 {[%emt 0:00:10]} h6 {[%emt 0:03:01]} 10. Bh4 {[%emt 0:00:59]} g5 {[%emt 0:06:08]} 11. Nxg5 {[%emt 0:00:11]} Nxd5 {[%emt 0:06:00]} 12. exd5 {[%emt 0:00:35]} hxg5 {[%emt 0:03:31]} 13. Qg4 {[%emt 0:01:03]} Qf6 {[%emt 0:10:42]} 14. dxc6 {[%emt 0:00:15]} Qg6 {[%emt 0:02:07]} 15. cxb7 {[%emt 0:04:29]} Rab8 {[%emt 0:00:44]} 16. Qxg5 {[%emt 0:00:28]} Qxg5 {[%emt 0:00:10]} 17. Bxg5 {[%emt 0:00:10]} Rxb7 {[%emt 0:00:32]} 18. b3 {[%emt 0:00:11]} f6 {[%emt 0:01:31]} 19. Be3 {[%emt 0:01:00]} Bb6 {[%emt 0:01:45]} 20. Ke2 {[%emt 0:00:17]} Kf7 {[%emt 0:02:14]} 21. h4 {[%emt 0:01:24]} Ke6 {[%emt 0:02:15]} 22. g4 {[%emt 0:00:25]} c5 {[%emt 0:01:44]} 23. a4 {[%emt 0:00:22]} Rh8 {[%emt 0:01:56]} 24. h5 {[%emt 0:00:11]} Bd8 {[%emt 0:02:13]} 25. f4 {[%emt 0:00:18]} Rb4 {[%emt 0:02:09]} 26. Kf3 {[%emt 0:00:14]} f5 {[%emt 0:05:38]} 27. g5 {[%emt 0:02:19]} e4+ {[%emt 0:01:39]} 28. dxe4 {[%emt 0:00:14]} Rxe4 {[%emt 0:00:20]} 29. Rag1 {[%emt 0:00:17]} Kf7 {[%emt 0:03:56]} 30. g6+ {[%emt 0:00:06]} Kg7 {[%emt 0:00:34]} 31. h6+ {[%emt 0:00:05]} Kg8 {[%emt 0:01:26]} 32. g7 {[%emt 0:00:41]} Rh7 {[%emt 0:01:17]} 33. Rg6 {[%emt 0:00:09]} Be7 {[%emt 0:02:06]} 34. Rh5 {[%emt 0:00:08]} Rb4 {[%emt 0:02:12]} 35. Rxf5 {[%emt 0:00:29]} Rb7 {[%emt 0:00:44]} 36. Re6 {[%emt 0:00:11]} Rb8 {[%emt 0:02:43]} 37. Rxe7 {[%emt 0:01:44]} Rxh6 {[%emt 0:00:13]} 38. Rxa7 {[%emt 0:00:12]} Re8 {[%emt 0:00:19]} 39. Rf8+ {[%emt 0:00:56]} Rxf8 {[%emt 0:00:14]} 40. gxf8=R+ {[%emt 0:00:10]} Kxf8 {[%emt 0:00:14]} 41. f5 {[%emt 0:00:03]} Rf6 {[%emt 0:00:19]} 42. Kg4 {[%emt 0:00:04]} Rf7 {[%emt 0:00:31]} 43. Rxf7+ {[%emt 0:00:18]} Kxf7 {[%emt 0:00:02]} 44. a5 {[%emt 0:00:08]} c4 {[%emt 0:00:12]} 45. b4 {[%emt 0:00:05]} d5 {[%emt 0:00:17]} 46. Bd4 {[%emt 0:00:03]} c3 {[%emt 0:00:08]} 47. a6 {[%emt 0:00:03]} Ke7 {[%emt 0:00:24]} 48. a7 {[%emt 0:00:03]} Kd6 {[%emt 0:00:13]} 49. a8=Q {[%emt 0:00:13]} Kc7 {[%emt 0:00:07]} 50. Qa6 {[%emt 0:00:07]} Kd7 {[%emt 0:00:12]} 51. b5 {[%emt 0:00:08]} Ke8 {[%emt 0:00:22]} 52. Qb7 {[%emt 0:00:09]} Kd8 {[%emt 0:00:18]} 53. f6 {[%emt 0:00:07]} Ke8 {[%emt 0:00:09]} 54. Qe7# {[%emt 0:00:07]} 1-0

[Event "Bijnor Open 2023"]
[Site "Bijnor"]
[Date "2023.11.30"]
[Round "2.4"]
[White "Daksh Goyal"]
[Black "Bhavishya Chauhan"]
[Result "1-0"]
[ECO "B77"]
[WhiteElo "1814"]
[BlackElo "1144"]
[Annotator "NA COMBH"]
[PlyCount "71"]
[EventDate "2023.11.29"]
[EventCountry "IND"]
[SourceTitle "playchess.com"]
[Source "ChessBase"]
[SourceQuality "1"]
[TimeControl "5400+30"]

1. e4 {[%emt 0:02:40]} c5 {[%emt 0:02:51]} 2. Nf3 {[%emt 0:00:20]} d6 {[%emt 0:00:24]} 3. d4 {[%emt 0:00:02]} cxd4 {[%emt 0:00:08]} 4. Nxd4 {[%emt 0:00:03]} Nf6 {[%emt 0:00:27]} 5. Nc3 {[%emt 0:00:02]} g6 {[%emt 0:00:31]} 6. Be3 {[%emt 0:00:03]} Bg7 {[%emt 0:00:54]} 7. f3 {[%emt 0:00:02]} Nc6 {[%emt 0:00:25]} 8. Qd2 {[%emt 0:00:05]} Bd7 {[%emt 0:01:07]} 9. Nxc6 {[%emt 0:03:15]} Bxc6 {[%emt 0:02:40]} 10. Bc4 {[%emt 0:00:38]} O-O {[%emt 0:01:45]} 11. O-O {[%emt 0:00:24]} a6 {[%emt 0:02:43]} 12. Rfd1 {[%emt 0:00:31]} Rc8 {[%emt 0:00:36]} 13. Bf1 {[%emt 0:02:58]} Re8 {[%emt 0:02:52]} 14. Rab1 {[%emt 0:06:13]} Qc7 {[%emt 0:06:11]} 15. Qf2 {[%emt 0:02:14]} e6 {[%emt 0:13:58]} 16. Bf4 {[%emt 0:05:41]} Bf8 {[%emt 0:01:58]} 17. Rd3 {[%emt 0:01:52]} Rcd8 {[%emt 0:05:38]} 18. Rbd1 {[%emt 0:03:04]} Rd7 {[%emt 0:02:02]} 19. a4 {[%emt 0:04:35]} Be7 {[%emt 0:04:07]} 20. b4 {[%emt 0:13:42]} b5 {[%emt 0:04:33]} 21. axb5 {[%emt 0:03:43]} Bxb5 {[%emt 0:00:07]} 22. Nxb5 {[%emt 0:00:52]} axb5 {[%emt 0:00:12]} 23. Ra3 {[%emt 0:10:48]} Rb8 {[%emt 0:02:15]} 24. Rda1 {[%emt 0:03:24]} Qc6 {[%emt 0:01:33]} 25. Ra6 {[%emt 0:03:17]} Qc3 {[%emt 0:01:33]} 26. R1a3 {[%emt 0:00:57]} Qc8 {[%emt 0:04:20]} 27. g3 {[%emt 0:03:30]} Bf8 {[%emt 0:03:48]} 28. c3 {[%emt 0:04:56]} Ne8 {[%emt 0:01:30]} 29. Rb6 {[%emt 0:06:06]} Rdb7 {[%emt 0:01:38]} 30. Rxb7 {[%emt 0:05:04]} Rxb7 {[%emt 0:00:52]} 31. Qa2 {[%emt 0:01:13]} Qc6 {[%emt 0:03:04]} 32. Ra8 {[%emt 0:02:42]} Nc7 {[%emt 0:13:31]} 33. Rd8 {[%emt 0:04:21]} e5 {[%emt 0:02:38]} 34. Bh6 $16 {[%emt 0:04:47]} Ne6 {[%emt 0:00:25]} 35. Ra8 {[%emt 0:00:25]} Qxc3 $2 {[%emt 0:01:33] [#]} (35... Qb6+ $18 36. Kg2 (36. Qf2 Qc7 $16) 36... Rb8) 36. Qxe6 $3 {[%emt 0:01:41]} 1-0

[Event "Bijnor Open 2023"]
[Site "Bijnor"]
[Date "2023.11.30"]
[Round "2.5"]
[White "Indra Shyam Singh"]
[Black "Anchal, Rastogi"]
[Result "0-1"]
[ECO "B30"]
[WhiteElo "1136"]
[BlackElo "1770"]
[Annotator "NA RC"]
[PlyCount "68"]
[EventDate "2023.11.29"]
[EventCountry "IND"]
[SourceTitle "playchess.com"]
[Source "ChessBase"]
[SourceQuality "1"]
[TimeControl "5400+30"]

1. e4 {[%emt 0:00:18]} c5 {[%emt 0:00:00]} 2. Nf3 {[%emt 0:00:06]} e6 {[%emt 0:00:08]} 3. Bc4 {[%emt 0:01:13]} Nc6 {[%emt 0:01:28]} 4. O-O {[%emt 0:00:45]} Qc7 {[%emt 0:00:17]} 5. Nc3 {[%emt 0:01:00]} Nf6 {[%emt 0:00:15]} 6. d4 {[%emt 0:02:17]} cxd4 {[%emt 0:00:10]} 7. Nxd4 {[%emt 0:00:56]} a6 {[%emt 0:00:06]} 8. Nxc6 {[%emt 0:01:02]} Qxc6 {[%emt 0:00:31]} 9. Bd3 {[%emt 0:00:14]} b5 {[%emt 0:00:48]} 10. Bg5 {[%emt 0:02:53]} b4 {[%emt 0:00:38]} 11. Bxf6 {[%emt 0:02:17]} gxf6 {[%emt 0:00:06]} 12. Ne2 {[%emt 0:00:44]} Bb7 {[%emt 0:01:15]} 13. Nd4 {[%emt 0:02:52]} Qc7 {[%emt 0:00:21]} 14. Qh5 {[%emt 0:01:46]} Bd6 {[%emt 0:00:50]} 15. Rfe1 {[%emt 0:03:35]} Be5 {[%emt 0:01:37]} 16. Nb3 {[%emt 0:01:51]} Bxb2 {[%emt 0:00:54]} 17. Rab1 {[%emt 0:00:32]} Bc3 {[%emt 0:00:10]} 18. Re3 {[%emt 0:01:34]} a5 {[%emt 0:02:24]} 19. Rg3 {[%emt 0:00:51]} a4 {[%emt 0:03:01]} 20. Nc5 {[%emt 0:01:42]} Ra5 {[%emt 0:05:01]} 21. Rg7 {[%emt 0:04:32]} Rf8 {[%emt 0:00:00]} 22. Qxh7 {[%emt 0:10:07]} Rxc5 {[%emt 0:00:00]} 23. Be2 {[%emt 0:00:46]} f5 {[%emt 0:00:00]} 24. Rxf7 {[%emt 0:00:26]} Rh8 {[%emt 0:02:13]} 25. Re7+ {[%emt 0:07:42]} Kd8 {[%emt 0:00:08]} 26. Bh5 {[%emt 0:00:25]} Qd6 {[%emt 0:01:40]} 27. Rxd7+ {[%emt 0:08:32]} Qxd7 {[%emt 0:00:17]} 28. Qg6 {[%emt 0:00:14]} Bxe4 {[%emt 0:01:02]} 29. Qg5+ {[%emt 0:01:23]} Kc8 {[%emt 0:00:29]} 30. Be2 {[%emt 0:01:25]} Qd6 {[%emt 0:00:29]} 31. h3 {[%emt 0:04:22]} Bxc2 {[%emt 0:00:01]} 32. Rf1 {[%emt 0:00:40]} b3 {[%emt 0:00:51]} 33. Qe3 {[%emt 0:01:52]} Bd4 {[%emt 0:00:23]} 34. Qf3 {[%emt 0:00:37]} Be4 {[%emt 0:00:13]} 0-1

[Event "Bijnor Open 2023"]
[Site "Bijnor"]
[Date "2023.11.30"]
[Round "2.6"]
[White "Shiven Bansal"]
[Black "Wazeer Ahmad, Khan"]
[Result "1-0"]
[ECO "B01"]
[WhiteElo "1127"]
[BlackElo "1686"]
[Annotator "NA RC"]
[PlyCount "106"]
[EventDate "2023.11.29"]
[EventCountry "IND"]
[SourceTitle "playchess.com"]
[Source "ChessBase"]
[SourceQuality "1"]
[TimeControl "5400+30"]

1. e4 {[%emt 0:00:04]} d5 {[%emt 0:00:12]} 2. exd5 {[%emt 0:00:10]} Nf6 {[%emt 0:00:12]} 3. d4 {[%emt 0:02:06]} Nxd5 {[%emt 0:00:03]} 4. c4 {[%emt 0:01:10]} Nb6 {[%emt 0:00:04]} 5. Nc3 {[%emt 0:00:59]} c6 {[%emt 0:00:05]} 6. h3 {[%emt 0:04:53]} Be6 {[%emt 0:03:44]} 7. b3 {[%emt 0:01:33]} Bf5 {[%emt 0:00:16]} 8. Nf3 {[%emt 0:01:54]} e6 {[%emt 0:00:19]} 9. Bb2 {[%emt 0:02:24]} N8d7 {[%emt 0:01:44]} 10. Be2 {[%emt 0:03:10]} Nf6 {[%emt 0:00:30]} 11. Nh4 {[%emt 0:10:59]} Bg6 {[%emt 0:05:17]} 12. Nxg6 {[%emt 0:02:48]} hxg6 {[%emt 0:00:14]} 13. O-O {[%emt 0:01:10]} Rh4 {[%emt 0:05:33]} 14. Nb1 {[%emt 0:13:59]} Qc7 {[%emt 0:05:17]} 15. Nd2 {[%emt 0:03:25]} O-O-O {[%emt 0:10:06]} 16. Nf3 {[%emt 0:04:13]} Rh8 {[%emt 0:00:55]} 17. Qe1 {[%emt 0:02:04]} Nh5 {[%emt 0:00:57]} 18. a4 {[%emt 0:05:15]} Nf4 {[%emt 0:01:25]} 19. Bc1 {[%emt 0:10:18]} Bb4 {[%emt 0:06:43]} 20. Bxf4 {[%emt 0:01:27]} Bxe1 {[%emt 0:03:06]} 21. Bxc7 {[%emt 0:00:12]} Bxf2+ {[%emt 0:00:10]} 22. Rxf2 {[%emt 0:00:22]} Kxc7 {[%emt 0:00:03]} 23. a5 {[%emt 0:01:07]} Nd7 {[%emt 0:00:08]} 24. Ng5 {[%emt 0:01:13]} Rdf8 {[%emt 0:03:41]} 25. Rxf7 {[%emt 0:01:03]} Rxf7 {[%emt 0:00:20]} 26. Nxf7 {[%emt 0:00:40]} Rh4 {[%emt 0:00:17]} 27. Bg4 {[%emt 0:00:46]} Nf6 {[%emt 0:00:35]} 28. Ne5 {[%emt 0:00:10]} Nxg4 {[%emt 0:00:34]} 29. Nxg4 {[%emt 0:00:34]} Rh8 {[%emt 0:00:55]} 30. Rf1 {[%emt 0:00:37]} Rd8 {[%emt 0:00:44]} 31. Rf4 {[%emt 0:02:40]} g5 {[%emt 0:02:40]} 32. Re4 {[%emt 0:01:24]} Kd6 {[%emt 0:00:23]} 33. Kf2 {[%emt 0:00:51]} Rf8+ {[%emt 0:00:28]} 34. Ke2 {[%emt 0:00:26]} Rf5 {[%emt 0:01:21]} 35. Ne5 {[%emt 0:02:08]} c5 {[%emt 0:01:02]} 36. Nf3 {[%emt 0:01:37]} cxd4 {[%emt 0:00:25]} 37. Nxd4 {[%emt 0:00:36]} Rxa5 {[%emt 0:00:25]} 38. Rxe6+ {[%emt 0:00:34]} Kd7 {[%emt 0:00:16]} 39. Rg6 {[%emt 0:00:45]} Ra2+ {[%emt 0:00:29]} 40. Kf3 {[%emt 0:00:51]} Rd2 {[%emt 0:00:11]} 41. Rxg7+ {[%emt 0:00:28]} Kc8 {[%emt 0:00:08]} 42. Nf5 {[%emt 0:01:01]} Rd3+ {[%emt 0:00:08]} 43. Ke2 {[%emt 0:01:37]} Rxb3 {[%emt 0:00:04]} 44. Nd6+ {[%emt 0:00:06]} Kb8 {[%emt 0:00:07]} 45. Rxb7+ {[%emt 0:01:11]} Rxb7 {[%emt 0:00:08]} 46. Nxb7 {[%emt 0:00:03]} Kxb7 {[%emt 0:00:02]} 47. Kd3 {[%emt 0:00:27]} Kc6 {[%emt 0:00:31]} 48. g3 {[%emt 0:01:16]} a5 {[%emt 0:00:56]} 49. h4 {[%emt 0:00:22]} gxh4 {[%emt 0:00:24]} 50. gxh4 {[%emt 0:00:03]} a4 {[%emt 0:00:36]} 51. h5 {[%emt 0:00:12]} a3 {[%emt 0:00:05]} 52. Kc2 {[%emt 0:00:14]} a2 {[%emt 0:00:15]} 53. Kb2 {[%emt 0:00:38]} Kc7 {[%emt 0:00:11]} 1-0

[Event "Bijnor Open 2023"]
[Site "Bijnor"]
[Date "2023.11.30"]
[Round "2.7"]
[White "Verma Ashu"]
[Black "Abhibhav Kumar"]
[Result "1-0"]
[ECO "C52"]
[WhiteElo "1674"]
[BlackElo "1127"]
[Annotator "NA RC"]
[PlyCount "65"]
[EventDate "2023.11.29"]
[EventCountry "IND"]
[SourceTitle "playchess.com"]
[Source "ChessBase"]
[SourceQuality "1"]
[TimeControl "5400+30"]

1. e4 {[%emt 0:04:06]} e5 {[%emt 0:00:22]} 2. Nf3 {[%emt 0:00:07]} Nc6 {[%emt 0:00:08]} 3. Bc4 {[%emt 0:00:04]} Bc5 {[%emt 0:00:07]} 4. b4 {[%emt 0:00:07]} Bxb4 {[%emt 0:00:12]} 5. c3 {[%emt 0:00:02]} Ba5 {[%emt 0:00:10]} 6. d4 {[%emt 0:00:05]} exd4 {[%emt 0:03:48]} 7. O-O {[%emt 0:00:11]} Nge7 {[%emt 0:02:20]} 8. Ng5 {[%emt 0:01:47]} Ne5 {[%emt 0:01:24]} 9. Bxf7+ {[%emt 0:03:22]} Nxf7 {[%emt 0:01:38]} 10. Nxf7 {[%emt 0:00:02]} Kxf7 {[%emt 0:00:05]} 11. Qh5+ {[%emt 0:00:11]} g6 {[%emt 0:01:51]} 12. Qxa5 {[%emt 0:00:03]} Re8 {[%emt 0:00:35]} 13. cxd4 {[%emt 0:06:11]} d6 {[%emt 0:09:29]} 14. Nd2 {[%emt 0:02:57]} d5 {[%emt 0:16:55]} 15. e5 {[%emt 0:04:10]} b6 {[%emt 0:00:44]} 16. Qc3 {[%emt 0:00:22]} Ba6 {[%emt 0:01:11]} 17. Re1 {[%emt 0:00:37]} Nf5 {[%emt 0:00:35]} 18. Nf3 {[%emt 0:00:22]} h6 {[%emt 0:00:13]} 19. g4 {[%emt 0:05:29]} Ng7 {[%emt 0:03:00]} 20. Bxh6 {[%emt 0:00:09]} Qd7 {[%emt 0:00:23]} 21. h3 {[%emt 0:10:13]} Rh8 {[%emt 0:02:09]} 22. e6+ {[%emt 0:06:36]} Nxe6 {[%emt 0:00:33]} 23. Ne5+ {[%emt 0:00:02]} Ke7 {[%emt 0:00:11]} 24. Nxd7 {[%emt 0:00:08]} Kxd7 {[%emt 0:00:05]} 25. Rxe6 {[%emt 0:00:20]} Kxe6 {[%emt 0:00:08]} 26. Qc6+ {[%emt 0:02:05]} Ke7 {[%emt 0:00:03]} 27. Bg5+ {[%emt 0:00:15]} Kf7 {[%emt 0:00:03]} 28. Qxd5+ {[%emt 0:01:05]} Kg7 {[%emt 0:00:07]} 29. Qd7+ {[%emt 0:00:39]} Kf8 {[%emt 0:00:11]} 30. Bf6 {[%emt 0:00:44]} Rh7 {[%emt 0:00:12]} 31. Qxh7 {[%emt 0:00:00]} Bb7 {[%emt 0:00:10]} 32. Qg7+ {[%emt 0:00:05]} Ke8 {[%emt 0:00:01]} 33. Qe7# {[%emt 0:00:03]} 1-0